[Event "Smuk Skak GM Tournament 2024"]
[Site "Skanderborg"]
[Date "2024.08.24"]
[Round "8.5"]
[White "Pajeken, Jakob Leon"]
[Black "Vinter-Schou, Uffe"]
[Result "1-0"]
[ECO "B44"]
[WhiteElo "2416"]
[BlackElo "2340"]
[Annotator "RC"]
[PlyCount "45"]
[EventDate "2024.08.11"]
[EventType "tourn"]
[EventCountry "DEN"]
[SourceTitle "playchess.com"]
[Source "ChessBase"]
[SourceQuality "1"]
[TimeControl "40/5400+30:1800+30"]

1. e4 {[%emt 0:00:16]} c5 {[%emt 0:00:33]} 2. Nf3 {[%emt 0:00:06]} Nc6 {[%emt 0:00:38]} 3. d4 {[%emt 0:00:10]} cxd4 {[%emt 0:00:06]} 4. Nxd4 {[%emt 0:00:02]} e6 {[%emt 0:00:28]} 5. a3 {[%emt 0:00:18]} Qc7 {[%emt 0:03:29]} 6. Be3 {[%emt 0:00:19]} a6 {[%emt 0:00:33]} 7. c4 {[%emt 0:00:10]} Nge7 {[%emt 0:13:21]} 8. Nc3 {[%emt 0:04:33]} Nxd4 {[%emt 0:01:54]} 9. Qxd4 {[%emt 0:00:15]} Nc6 {[%emt 0:00:25]} 10. Qd2 {[%emt 0:06:02]} Be7 {[%emt 0:12:31]} 11. Rc1 {[%emt 0:03:26]} b6 {[%emt 0:08:49]} 12. Be2 {[%emt 0:07:36]} O-O {[%emt 0:00:17]} 13. O-O {[%emt 0:00:52]} f5 {[%emt 0:18:35]} 14. exf5 {[%emt 0:08:26]} Rxf5 {[%emt 0:00:02]} 15. Bd3 {[%emt 0:07:21]} Rf7 {[%emt 0:00:10]} 16. Qc2 {[%emt 0:03:52]} g6 {[%emt 0:00:32]} 17. Nd5 {[%emt 0:03:12]} exd5 {[%emt 0:17:09]} 18. cxd5 {[%emt 0:00:02]} Qe5 {[%emt 0:02:34]} 19. dxc6 {[%emt 0:00:20]} b5 {[%emt 0:01:27]} 20. Rfe1 {[%emt 0:02:28]} Bd6 {[%emt 0:04:37]} 21. g3 {[%emt 0:01:42]} Qf6 {[%emt 0:02:17]} 22. c7 {[%emt 0:03:07]} Bb7 {[%emt 0:00:42]} 23. Be4 {[%emt 0:00:07]} 1-0

[Event "Smuk Skak GM Tournament 2024"]
[Site "Skanderborg"]
[Date "2024.08.25"]
[Round "9.2"]
[White "Vinter-Schou, Uffe"]
[Black "Solodovnichenko, Yuri"]
[Result "0-1"]
[ECO "A07"]
[WhiteElo "2340"]
[BlackElo "2491"]
[Annotator "TA"]
[PlyCount "90"]
[EventDate "2024.08.11"]
[EventType "tourn"]
[EventCountry "DEN"]
[SourceTitle "playchess.com"]
[Source "ChessBase"]
[SourceQuality "1"]
[TimeControl "40/5400+30:1800+30"]

{[%evp 9,90,12,12,7,19,5,0,0,11,0,0,0,0,0,0,-22,0,-33,-25,-47,-32,-45,-35,-40,-41,-55,-38,-26,0,0,0,-67,-56,-72,-51,-39,-37,-52,-44,-41,-44,-38,-44,-81,-88,-100,-91,-101,-97,-199,-205,-345,-344,-637,-272,-347,-343,-336,-317,-470,-408,-408,-408,-404,-200,-199,-190,-191,-98,-191,-150,-283,-294,-322,-267,-336,-244,-1173,-1137,-1401,-1407,-1255,-1255]} 1. Nf3 {[%emt 0:00:05]} d5 {[%emt 0:00:54]} 2. g3 {[%emt 0:01:03]} Nf6 {[%emt 0:00:29]} 3. Bg2 {[%emt 0:00:18]} c6 {[%emt 0:00:06]} 4. O-O {[%emt 0:00:26]} Bg4 {[%emt 0:00:05]} 5. d4 {[%emt 0:04:00]} e6 {[%emt 0:00:22]} 6. b3 {[%emt 0:01:15]} Be7 {[%emt 0:06:39]} 7. Bb2 {[%emt 0:00:14]} Nbd7 {[%emt 0:06:39]} 8. Nbd2 {[%emt 0:03:34] The position is equal.} h6 {[%emt 0:02:53]} 9. c4 {[%emt 0:11:33]} Bf5 {[%emt 0:08:25]} 10. Ne5 {[%emt 0:01:51]} a5 {[%emt 0:02:28]} 11. a3 {[%emt 0:03:54]} O-O {[%emt 0:01:36]} 12. Rc1 {[%emt 0:06:30]} Bh7 {[%emt 0:05:57]} 13. e3 {[%emt 0:02:51]} Nxe5 {[%emt 0:01:40]} 14. dxe5 {[%emt 0:00:06]} Nd7 {[%emt 0:00:08][%cal Bf6d7,Bd7c5,Bc5d3][%mdl 32]} 15. cxd5 {[%emt 0:21:24]} cxd5 {[%emt 0:01:21]} 16. e4 {[%emt 0:21:36]} Nc5 {[%emt 0:00:32]} 17. exd5 {[%emt 0:00:06] [#] And now d6 would win.} exd5 {[%emt 0:00:25]} (17... Nd3 $5 18. Rc2 exd5 $17) 18. Bd4 {[%emt 0:02:22]} Nd3 {[%emt 0:01:41]} 19. Rc3 {[%emt 0:05:23]} Rc8 $1 {[%emt 0:15:04]} (19... Bxa3 $2 20. Nb1 $18) 20. Qa1 {[%emt 0:00:07]} ({White should try} 20. Rxc8 $11 Qxc8 21. Bxd5) 20... Rxc3 $15 {[%emt 0:01:09]} 21. Bxc3 {[%emt 0:00:02][%cal Oe5e6]} Bc5 {[%emt 0:02:05] ...Qb6 is the strong threat. Black is more active.} 22. b4 {[%emt 0:06:04]} axb4 {[%emt 0:00:40]} 23. axb4 {[%emt 0:00:01]} Bxb4 {[%emt 0:04:01]} 24. Bxb4 {[%emt 0:04:13]} Nxb4 {[%emt 0:00:04]} 25. Qd4 {[%emt 0:00:49] Inhibits Qb6.} Qe7 {[%emt 0:00:34]} 26. Nf3 {[%emt 0:01:43]} Be4 {[%emt 0:00:24]} 27. Qb6 {[%emt 0:01:39]} Nc6 {[%emt 0:00:31]} 28. Re1 {[%emt 0:00:11]} Ra8 {[%emt 0:11:06][%cal Oa8a2]} 29. Nd4 {[%emt 0:00:28]} (29. Nd2 $17 {was worth a try.}) 29... Nxe5 $19 {[%emt 0:01:05] [#] Hoping for ...Nd3.} (29... Qxe5 $2 {perishes.} 30. Qxb7 (30. Nxc6 bxc6 31. Qxc6 Ra1 $15) 30... Nxd4 31. Qxa8+ Kh7 32. Bxe4+ dxe4 33. Rxe4 $18 (33. Qxe4+ Qxe4 34. Rxe4 Ne6 $18)) 30. f3 {[%emt 0:00:52]} (30. Bxe4 $142 dxe4 31. Rb1) 30... Nc4 {[%emt 0:00:32]} 31. Qb5 {[%emt 0:00:30]} (31. Qb1 Qc5 32. fxe4 Qxd4+ 33. Kh1) 31... Ra5 {[%emt 0:01:39]} (31... Qf6 $142 32. Ne2 Ra1 (32... Bxf3 $2 33. Bxf3 Qxf3 34. Nf4 $19) 33. Rxa1 Qxa1+ 34. Kf2 Qa7+ 35. Ke1 Ne3) 32. Rxe4 {[%emt 0:00:22]} dxe4 {[%emt 0:01:51]} 33. Qxc4 {[%emt 0:00:02]} Rc5 {[%emt 0:04:56]} 34. Qf1 {[%emt 0:01:19]} (34. Qa4 {keeps fighting.}) 34... Qe5 {[%emt 0:03:29]} 35. Ne2 {[%emt 0:00:02]} Ra5 {[%emt 0:00:17] aiming for ...Ra1.} 36. f4 {[%emt 0:00:09]} Qb2 {[%emt 0:01:38]} (36... Qc5+ $142 37. Kh1 Qc4) 37. Qf2 {[%emt 0:00:04]} Ra1+ {[%emt 0:06:58]} 38. Bf1 {[%emt 0:00:01][%cal Of2c5]} Rd1 {[%emt 0:00:19]} (38... Qc2 $19 {White must now prevent ...b5.} 39. g4 Qd3) 39. g4 {[%emt 0:00:54]} (39. Qc5 $17 {is a better defense.}) 39... b5 $36 {[%emt 0:01:33][%mdl 2048] Threatens to win with ...Qd2. Black is really pushing.} 40. Qe3 {[%emt 0:01:01]} (40. Qc5 $17) 40... Qb1 {[%emt 0:02:09]} 41. Ng3 {[%emt 0:30:45][%cal Oe3c5]} b4 {[%emt 0:31:22]} 42. Qc5 {[%emt 0:00:00]} Qc1 {[%emt 0:00:00]} 43. Qxc1 {[%emt 0:00:00]} (43. Qxb4 Qe3+ (43... Qxf4 44. Qc4 $17) 44. Kh1 Qxf4 45. Qc4) 43... Rxc1 {[%emt 0:00:00] Black is clearly winning.} 44. Nxe4 {[%emt 0:00:00]} b3 {[%emt 0:00:00] Strongly threatening ...b2.} 45. Kf2 {[%emt 0:00:00]} Rc2+ {[%emt 0:00:00] Weighted Error Value: White=0.64/Black=0.31.  Mistake:       	White=8     	Black=3      Inaccurate:     	White=2     	Black=1      OK:         	White=9     	Black=12     Best:        	White=3     	Black=4      Strong:       	---       	Black=1} 0-1

[Event "Smuk Skak GM Tournament 2024"]
[Site "Skanderborg"]
[Date "2024.08.25"]
[Round "9.3"]
[White "Olsen, Filip Boe"]
[Black "Aczel, Gergely"]
[Result "1-0"]
[ECO "B38"]
[WhiteElo "2431"]
[BlackElo "2485"]
[Annotator "RC"]
[PlyCount "83"]
[EventDate "2024.08.11"]
[EventType "tourn"]
[EventCountry "DEN"]
[SourceTitle "playchess.com"]
[Source "ChessBase"]
[SourceQuality "1"]
[TimeControl "40/5400+30:1800+30"]

1. Nf3 {[%emt 0:00:09]} c5 {[%emt 0:00:41]} 2. c4 {[%emt 0:00:25]} Nc6 {[%emt 0:00:09]} 3. d4 {[%emt 0:01:07]} cxd4 {[%emt 0:00:07]} 4. Nxd4 {[%emt 0:00:07]} g6 {[%emt 0:01:06]} 5. e4 {[%emt 0:01:01]} Bg7 {[%emt 0:00:41]} 6. Be3 {[%emt 0:00:40]} Nf6 {[%emt 0:01:39]} 7. Nc3 {[%emt 0:00:29]} d6 {[%emt 0:04:39]} 8. Be2 {[%emt 0:00:37]} O-O {[%emt 0:00:11]} 9. O-O {[%emt 0:00:18]} Bd7 {[%emt 0:01:04]} 10. h3 {[%emt 0:01:06]} Nxd4 {[%emt 0:00:36]} 11. Bxd4 {[%emt 0:00:02]} Bc6 {[%emt 0:05:39]} 12. Qc2 {[%emt 0:03:14]} Nd7 {[%emt 0:03:17]} 13. Bxg7 {[%emt 0:00:34]} Kxg7 {[%emt 0:00:03]} 14. b4 {[%emt 0:00:16]} b6 {[%emt 0:00:39]} 15. Rad1 {[%emt 0:04:44]} a5 {[%emt 0:01:19]} 16. a3 {[%emt 0:01:21]} Qc7 {[%emt 0:03:37]} 17. f4 {[%emt 0:12:34]} axb4 {[%emt 0:30:10]} 18. axb4 {[%emt 0:00:04]} Qa7 {[%emt 0:00:11]} 19. b5 {[%emt 0:12:34]} Bb7 {[%emt 0:00:08]} 20. e5 {[%emt 0:00:27]} Qa3 {[%emt 0:00:09]} 21. Kh2 {[%emt 0:05:06]} Rfd8 {[%emt 0:08:44]} 22. exd6 {[%emt 0:00:57]} exd6 {[%emt 0:00:05]} 23. Bf3 {[%emt 0:00:47]} Qa7 {[%emt 0:22:42]} 24. Bxb7 {[%emt 0:03:18]} Qxb7 {[%emt 0:00:02]} 25. Nd5 {[%emt 0:02:13]} Re8 {[%emt 0:00:34]} 26. f5 {[%emt 0:11:28]} f6 {[%emt 0:02:19]} 27. fxg6 {[%emt 0:03:23]} hxg6 {[%emt 0:00:02]} 28. Nf4 {[%emt 0:00:22]} Qe4 {[%emt 0:01:11]} 29. Qxe4 {[%emt 0:00:42]} Rxe4 {[%emt 0:00:03]} 30. Rxd6 {[%emt 0:00:14]} Ra7 {[%emt 0:00:48]} 31. Nd5 {[%emt 0:02:23]} f5 {[%emt 0:01:00]} 32. Rc1 {[%emt 0:01:51]} Ne5 {[%emt 0:02:47]} 33. c5 {[%emt 0:01:17]} bxc5 {[%emt 0:07:23]} 34. b6 {[%emt 0:00:13]} Rb7 {[%emt 0:00:03]} 35. Rxc5 {[%emt 0:00:43]} Kh6 {[%emt 0:00:06]} 36. Rc7 {[%emt 0:05:36]} Rb8 {[%emt 0:00:01]} 37. Ne7 {[%emt 0:03:10]} f4 {[%emt 0:00:22]} 38. b7 {[%emt 0:08:47]} Re2 {[%emt 0:01:30]} 39. Nf5+ {[%emt 0:01:04]} Kg5 {[%emt 0:00:07]} 40. Nd4 {[%emt 0:00:16]} Re1 {[%emt 0:01:24]} 41. Rc5 {[%emt 0:32:58]} Kh6 {[%emt 0:32:27]} 42. Rxe5 {[%emt 0:00:56]} 1-0

[Event "Smuk Skak GM Tournament 2024"]
[Site "Skanderborg"]
[Date "2024.08.25"]
[Round "9.4"]
[White "Kanov, Nikola"]
[Black "Fromm, Marius"]
[Result "0-1"]
[ECO "A20"]
[WhiteElo "2414"]
[BlackElo "2447"]
[Annotator "RC"]
[PlyCount "192"]
[EventDate "2024.08.11"]
[EventType "tourn"]
[EventCountry "DEN"]
[SourceTitle "playchess.com"]
[Source "ChessBase"]
[SourceQuality "1"]
[TimeControl "40/5400+30:1800+30"]

1. c4 {[%emt 0:00:04]} e5 {[%emt 0:01:08]} 2. g3 {[%emt 0:00:30]} c6 {[%emt 0:00:35]} 3. Nf3 {[%emt 0:00:50]} e4 {[%emt 0:00:35]} 4. Nd4 {[%emt 0:00:10]} d5 {[%emt 0:00:07]} 5. cxd5 {[%emt 0:00:26]} Qxd5 {[%emt 0:00:05]} 6. Nc2 {[%emt 0:07:07]} Nf6 {[%emt 0:00:16]} 7. Nc3 {[%emt 0:00:36]} Qe5 {[%emt 0:00:07]} 8. Bg2 {[%emt 0:04:58]} Na6 {[%emt 0:00:19]} 9. O-O {[%emt 0:05:23]} Be7 {[%emt 0:00:51]} 10. d4 {[%emt 0:09:08]} exd3 {[%emt 0:00:15]} 11. exd3 {[%emt 0:00:42]} Bg4 {[%emt 0:08:25]} 12. Qe1 {[%emt 0:10:55]} Qd6 {[%emt 0:09:35]} 13. d4 {[%emt 0:05:11]} O-O {[%emt 0:00:53]} 14. Bg5 {[%emt 0:06:52]} Qd7 {[%emt 0:04:19]} 15. Ne3 {[%emt 0:03:17]} Bh3 {[%emt 0:13:24]} 16. Rd1 {[%emt 0:01:42]} Bxg2 {[%emt 0:00:27]} 17. Kxg2 {[%emt 0:00:44]} Rfe8 {[%emt 0:03:06]} 18. d5 {[%emt 0:06:50]} h6 {[%emt 0:10:56]} 19. Bxf6 {[%emt 0:02:15]} Bxf6 {[%emt 0:00:04]} 20. Qd2 {[%emt 0:02:01]} Rad8 {[%emt 0:01:13]} 21. Rfe1 {[%emt 0:05:54]} Nb4 {[%emt 0:03:50]} 22. a3 {[%emt 0:08:07]} Bxc3 {[%emt 0:03:26]} 23. Qxc3 {[%emt 0:00:28]} Nxd5 {[%emt 0:00:49]} 24. Nxd5 {[%emt 0:00:24]} cxd5 {[%emt 0:00:03]} 25. Rxe8+ {[%emt 0:02:02]} Qxe8 {[%emt 0:00:17]} 26. Rd4 {[%emt 0:03:18]} Qe5 {[%emt 0:01:13]} 27. a4 {[%emt 0:02:52]} b6 {[%emt 0:05:54]} 28. h4 {[%emt 0:00:42]} g6 {[%emt 0:00:59]} 29. b4 {[%emt 0:03:35]} Kg7 {[%emt 0:00:35]} 30. Qd2 {[%emt 0:02:35]} Rd6 {[%emt 0:02:10]} 31. Qd3 {[%emt 0:00:46]} h5 {[%emt 0:02:17]} 32. Qd2 {[%emt 0:00:31]} Kh7 {[%emt 0:02:12]} 33. Qd3 {[%emt 0:00:21]} Qe8 {[%emt 0:01:04]} 34. Qf3 {[%emt 0:01:00]} Qd7 {[%emt 0:02:29]} 35. Qf4 {[%emt 0:00:27]} Qe6 {[%emt 0:04:51]} 36. Qd2 {[%emt 0:01:21]} Kg8 {[%emt 0:00:42]} 37. Qg5 {[%emt 0:01:45]} Qd7 {[%emt 0:01:13]} 38. Qe5 {[%emt 0:01:36]} Qe6 {[%emt 0:07:21]} 39. Qg5 {[%emt 0:00:11]} Qe8 {[%emt 0:00:05]} 40. Qf4 {[%emt 0:01:35]} Re6 {[%emt 0:03:47]} 41. Rxd5 {[%emt 0:08:22]} Qc6 {[%emt 0:00:09]} 42. Qf3 {[%emt 0:01:16]} Qxa4 {[%emt 0:00:08]} 43. Rd8+ {[%emt 0:06:38]} Re8 {[%emt 0:00:12]} 44. Qf6 {[%emt 0:01:38]} Rxd8 {[%emt 0:01:57]} 45. Qxd8+ {[%emt 0:00:02]} Kg7 {[%emt 0:00:55]} 46. Qd4+ {[%emt 0:00:46]} Kg8 {[%emt 0:00:05]} 47. Qd8+ {[%emt 0:00:03]} Kg7 {[%emt 0:00:05]} 48. Qd4+ {[%emt 0:00:03]} Kh7 {[%emt 0:00:13]} 49. Qc4 {[%emt 0:00:49]} Qd7 {[%emt 0:00:16]} 50. b5 {[%emt 0:00:38]} Qf5 {[%emt 0:00:31]} 51. Kg1 {[%emt 0:05:01]} Kg8 {[%emt 0:00:06]} 52. Qc6 {[%emt 0:00:24]} Qe5 {[%emt 0:00:25]} 53. Qd7 {[%emt 0:01:27]} Kg7 {[%emt 0:00:31]} 54. Kg2 {[%emt 0:01:06]} Qe4+ {[%emt 0:03:37]} 55. Kg1 {[%emt 0:00:12]} Qc4 {[%emt 0:00:04]} 56. Qc6 {[%emt 0:01:22]} Qd4 {[%emt 0:00:05]} 57. Qc2 {[%emt 0:02:12]} a5 {[%emt 0:02:20]} 58. bxa6 {[%emt 0:01:55]} Qa1+ {[%emt 0:00:04]} 59. Kh2 {[%emt 0:00:59]} Qxa6 {[%emt 0:00:03]} 60. Qc3+ {[%emt 0:00:05]} Kg8 {[%emt 0:00:15]} 61. Qf6 {[%emt 0:00:43]} Qb7 {[%emt 0:01:04]} 62. f4 {[%emt 0:02:06]} b5 {[%emt 0:16:02]} 63. f5 {[%emt 0:00:25]} Kh7 {[%emt 0:00:05]} 64. fxg6+ {[%emt 0:02:06]} fxg6 {[%emt 0:00:01]} 65. Qe6 {[%emt 0:02:24]} b4 {[%emt 0:00:13]} 66. Qb3 {[%emt 0:00:01]} Qe7 {[%emt 0:01:21]} 67. Qc4 {[%emt 0:00:30]} Qb7 {[%emt 0:04:38]} 68. Qb3 {[%emt 0:00:02]} Kg7 {[%emt 0:00:31]} 69. Qb2+ {[%emt 0:00:23]} Kf7 {[%emt 0:03:50]} 70. Qb3+ {[%emt 0:00:05]} Kf8 {[%emt 0:02:04]} 71. Qe6 {[%emt 0:01:10]} Kg7 {[%emt 0:03:26]} 72. Qb3 {[%emt 0:00:11]} Qe4 {[%emt 0:00:08]} 73. Qb2+ {[%emt 0:00:41]} Kf7 {[%emt 0:00:37]} 74. Qf2+ {[%emt 0:00:46]} Ke6 {[%emt 0:00:22]} 75. Qb6+ {[%emt 0:00:35]} Kf5 {[%emt 0:00:14]} 76. Qd8 {[%emt 0:01:25]} Qc2+ {[%emt 0:04:43]} 77. Kh3 {[%emt 0:00:18]} Ke4 {[%emt 0:01:11]} 78. Qf6 {[%emt 0:00:47]} Kd5 {[%emt 0:01:27]} 79. Qf7+ {[%emt 0:00:34]} Kd4 {[%emt 0:00:13]} 80. Qf6+ {[%emt 0:00:29]} Kc4 {[%emt 0:00:11]} 81. Qe6+ {[%emt 0:00:31]} Kb5 {[%emt 0:01:08]} 82. Qd7+ {[%emt 0:00:31]} Qc6 {[%emt 0:00:09]} 83. Qd3+ {[%emt 0:00:13]} Ka4 {[%emt 0:02:38]} 84. Qd1+ {[%emt 0:00:12]} b3 {[%emt 0:00:02]} 85. Qa1+ {[%emt 0:00:08]} Kb5 {[%emt 0:00:19]} 86. Qf1+ {[%emt 0:00:27]} Qc4 {[%emt 0:00:31]} 87. Qf8 {[%emt 0:00:30]} Qe6+ {[%emt 0:00:50]} 88. Kh2 {[%emt 0:00:10]} Kc4 {[%emt 0:00:28]} 89. Qf4+ {[%emt 0:00:27]} Kd3 {[%emt 0:00:13]} 90. Qf3+ {[%emt 0:01:13]} Kd2 {[%emt 0:01:30]} 91. Qf4+ {[%emt 0:00:11]} Kc2 {[%emt 0:00:36]} 92. Qf2+ {[%emt 0:00:04]} Kd1 {[%emt 0:00:18]} 93. Qd4+ {[%emt 0:00:17]} Ke2 {[%emt 0:00:05]} 94. Kg2 {[%emt 0:00:40]} Qc6+ {[%emt 0:00:14]} 95. Kh2 {[%emt 0:00:21]} Qc2 {[%emt 0:00:08]} 96. Kg1 {[%emt 0:00:16]} Qd1+ {[%emt 0:00:03]} 0-1

[Event "Smuk Skak GM Tournament 2024"]
[Site "Skanderborg"]
[Date "2024.08.25"]
[Round "9.5"]
[White "Thybo, Jesper Sondergaard"]
[Black "Pajeken, Jakob Leon"]
[Result "1-0"]
[ECO "D26"]
[WhiteElo "2554"]
[BlackElo "2416"]
[Annotator "TA"]
[PlyCount "131"]
[EventDate "2024.08.11"]
[EventType "tourn"]
[EventCountry "DEN"]
[SourceTitle "playchess.com"]
[Source "ChessBase"]
[SourceQuality "1"]
[TimeControl "40/5400+30:1800+30"]

{[%evp 11,131,17,34,20,32,38,34,22,16,20,25,0,41,16,8,8,37,5,10,9,8,3,6,6,11,6,37,29,37,37,63,21,27,35,42,59,52,56,55,47,106,108,108,100,103,97,97,99,97,97,97,66,66,66,67,17,19,13,13,14,310,302,268,0,0,0,314,314,316,320,320,325,311,311,303,77,276,248,213,76,76,76,181,181,169,174,323,301,307,306,422,423,400,426,397,289,520,350,402,402,400,150,170,164,426,409,383,314,634,625,1341,643,622,535,1591,1048,29968,29966,29983,29984,29984,29985]} 1. d4 {[%emt 0:00:15]} d5 {[%emt 0:00:08]} 2. Nf3 {[%emt 0:00:07]} Nf6 {[%emt 0:00:27]} 3. c4 {[%emt 0:00:16]} dxc4 {[%emt 0:00:06]} 4. e3 {[%emt 0:00:16]} e6 {[%emt 0:00:03]} 5. Bxc4 {[%emt 0:00:19]} c5 {[%emt 0:00:05]} 6. O-O {[%emt 0:00:24]} Be7 {[%emt 0:00:09]} 7. dxc5 {[%emt 0:05:44]} Qxd1 {[%emt 0:00:13]} 8. Rxd1 {[%emt 0:00:06]} Bxc5 {[%emt 0:00:02]} 9. a3 {[%emt 0:02:29] White is slightly better.} O-O {[%emt 0:00:17]} 10. Be2 {[%emt 0:02:39]} Nbd7 {[%emt 0:01:43]} 11. Nd4 {[%emt 0:05:17]} e5 {[%emt 0:16:50]} 12. Nb5 {[%emt 0:13:17]} a6 {[%emt 0:02:59]} 13. Nc7 {[%emt 0:01:51]} Ra7 {[%emt 0:06:13]} 14. Nc3 {[%emt 0:01:37]} b5 {[%emt 0:01:51]} 15. N7d5 {[%emt 0:00:27]} Nxd5 {[%emt 0:00:25]} 16. Nxd5 {[%emt 0:01:22]} Nb6 {[%emt 0:04:31]} 17. Nxb6 {[%emt 0:04:45]} Bxb6 {[%emt 0:00:09]} 18. Bd2 {[%emt 0:00:13]} Be6 {[%emt 0:06:12]} 19. Bc3 {[%emt 0:01:59]} e4 {[%emt 0:01:39]} 20. h3 {[%emt 0:09:01]} Rc8 {[%emt 0:04:51]} 21. Bg4 {[%emt 0:20:05]} Bxg4 {[%emt 0:01:15]} 22. hxg4 {[%emt 0:00:03]} f6 {[%emt 0:16:30]} 23. Rd6 {[%emt 0:03:52]} Rb7 {[%emt 0:01:39]} 24. Rad1 {[%emt 0:02:19]} a5 {[%emt 0:05:13][%cal Ob5b4]} 25. Rd7 {[%emt 0:06:42]} Rcc7 {[%emt 0:02:37]} (25... Rxd7 $14 26. Rxd7 Rc5) 26. R7d5 $16 {[%emt 0:08:43] White is much more active.} b4 {[%emt 0:05:58]} 27. axb4 {[%emt 0:01:23]} axb4 {[%emt 0:00:07]} 28. Bxb4 {[%emt 0:01:38]} Bxe3 {[%emt 0:00:32]} 29. Bd6 {[%emt 0:00:57]} Rc2 {[%emt 0:00:47]} 30. fxe3 {[%emt 0:00:29]} Rbxb2 {[%emt 0:00:06]} 31. Kh2 {[%emt 0:02:40] Rg1 would now be deadly.} Rxg2+ {[%emt 0:00:14]} 32. Kh3 {[%emt 0:00:02] And now R5d4 would win.} Rge2 $1 {[%emt 0:01:20]} 33. Bf4 {[%emt 0:03:12]} (33. Bc5 $14) 33... g5 $11 {[%emt 0:01:56]} 34. Rd8+ {[%emt 0:02:17]} Kf7 $1 {[%emt 0:00:28]} 35. Bg3 {[%emt 0:00:40]} Rxe3 $2 {[%emt 0:00:48][%mdl 8192]} (35... Kg6 $11 {and Black stays safe.}) 36. R1d7+ $18 {[%emt 0:00:24]} Ke6 {[%emt 0:00:35] Hoping for ...Rbb3.} 37. Rd6+ {[%emt 0:00:25]} Kf7 {[%emt 0:00:27] Strongly threatening ...Rbb3.} 38. R6d7+ {[%emt 0:00:04]} Ke6 $1 {[%emt 0:00:04] Threatens to win with ...Rbb3.} 39. Rxh7 {[%emt 0:00:15]} Rd3 {[%emt 0:00:17] Repels Rd6+} 40. Re8+ {[%emt 0:01:10]} Kd5 {[%emt 0:00:05]} 41. Rd7+ {[%emt 0:30:43]} Kc6 {[%emt 0:31:22]} 42. Rc7+ {[%emt 0:00:26]} (42. Rf7 Rbb3 $18) 42... Kd5 {[%emt 0:00:36]} 43. Rd8+ $1 {[%emt 0:00:00]} Ke6 {[%emt 0:00:00]} 44. Ra8 {[%emt 0:00:00]} Rb6 {[%emt 0:00:00] Against Ra6} 45. Raa7 {[%emt 0:00:00]} (45. Re8+ $18 {is more deadly.} Kd5 46. Rd7+ Kc4 47. Rxe4+ Kc3 48. Rde7) 45... Kd5 $16 {[%emt 0:00:00]} 46. Rd7+ {[%emt 0:00:00]} Kc4 {[%emt 0:00:00]} (46... Ke6 $16 47. Re7+ Kd5 48. Rad7+ Kc5) 47. Rac7+ $18 {[%emt 0:00:00]} Kb3 {[%emt 0:00:00]} 48. Re7 {[%emt 0:00:00]} e3 {[%emt 0:00:00]} (48... Rb5 {might work better.} 49. Rxe4 f5) 49. Rc5 {[%emt 0:00:00]} Kb2 {[%emt 0:00:00]} 50. Re4 {[%emt 0:00:00]} Kb1 {[%emt 0:00:00] [#]} 51. Be1 $1 {[%emt 0:00:00]} Rb2 {[%emt 0:00:00]} 52. Kg3 {[%emt 0:00:22]} Rc2 {[%emt 0:03:56]} 53. Rf5 {[%emt 0:01:23]} Kc1 $2 {[%emt 0:02:33]} (53... Rc1) 54. Rf3 {[%emt 0:02:20]} Re2 {[%emt 0:00:41]} 55. Bb4 {[%emt 0:01:09]} Kc2 {[%emt 0:04:24]} 56. Bc5 $2 {[%emt 0:00:35]} (56. Rxf6 $18 {has better winning chances.} Rd1 57. Ree6) 56... Rdd2 $16 {[%emt 0:03:07] [#] ( -> ...Rg2+)} 57. Rf1 $1 {[%emt 0:01:24]} (57. Bxe3 $2 Rg2+ 58. Kh3 Rh2+ 59. Kg3 Rdg2#) 57... Kd3 {[%emt 0:01:57]} (57... Rf2 {was called for.} 58. Rg1 (58. Rxf2 exf2 59. Bxf2 Rd5 $16) 58... f5 59. gxf5 (59. Rxe3 $2 {is a self mate.} f4+ 60. Kh3 Rh2#) 59... Rxf5) 58. Rd4+ $18 {[%emt 0:00:19]} Kc3 {[%emt 0:00:25]} 59. Ra4 {[%emt 0:00:40]} Rd5 $2 {[%emt 0:02:56]} (59... Kd3 60. Rg1 (60. Rxf6 Rg2+ 61. Kh3 Rh2+ 62. Kg3 Rdg2+ 63. Kf3 Rf2+ 64. Kg3 Rhg2+ 65. Kh3 Rh2+ 66. Kg3 Rhg2+ 67. Kh3 Rh2+ 68. Kg3 $11) 60... Ra2 61. Rd4+ Kc3 62. Rc1+ Rac2) 60. Be7 {[%emt 0:00:52]} Kb3 {[%emt 0:01:01]} 61. Ra3+ {[%emt 0:00:24]} Kb2 {[%emt 0:00:17]} 62. Raa1 {[%emt 0:00:22]} f5 {[%emt 0:03:10]} 63. gxf5 {[%emt 0:00:16][%cal Bg4f5,Bf5f6][%mdl 32] aiming for f6!} Rf2 {[%emt 0:01:07]} 64. f6 {[%emt 0:00:15] White mates.} (64. Bxg5 Rdxf5 65. Rfb1+ Kc3 66. Rc1+ (66. Bxe3 R5f3+ 67. Kg4 Rxe3 $11) 66... Kd4 67. Ra4+ Kd5 $18) 64... Rdf5 {[%emt 0:00:40]} 65. Rxf2+ {[%emt 0:00:30]} exf2 {[%emt 0:00:14]} 66. Rf1 {[%emt 0:00:08] Weighted Error Value: White=0.28 (precise) /Black=0.48.  Loses game:     	---       	Black=2      Missed win:     	White=1     	---        Mistake:       	White=2     	Black=6      Inaccurate:     	White=4     	Black=7      OK:         	White=22    	Black=22     Best:        	White=6     	Black=9      Strong:       	White=3     	Black=3} 1-0